bitfinex/quotes_BTCUSD_20241117
["timestamp","ask_amount","ask_price","bid_price","bid_amount"]
[1731807164293,0.005,90471.0,90461.0,0.21960655]
[1731807164294,0.01016959,90467.0,90462.0,0.110543]
[1731807164512,0.110534,90470.0,90462.0,0.110543]
[1731807164727,0.01016766,90469.0,90462.0,0.023]
[1731807164958,0.01016766,90468.0,90462.0,0.023]
[1731807165219,0.221071,90469.0,90462.0,0.023]
[1731807165220,0.221078,90466.0,90462.0,0.023]
[1731807165458,0.110542,90463.0,90462.0,0.023]
[1731807165939,0.110542,90463.0,90452.0,0.023]
[1731807166166,0.110542,90463.0,90457.0,0.023]
[1731807166652,0.02127136,90476.0,90454.0,0.023]
[1731807166653,0.02033358,90469.0,90454.0,0.023]
[1731807166871,0.221088,90462.0,90456.0,0.023]
[1731807167090,0.110548,90459.0,90456.0,0.13206255]
[1731807167311,0.221088,90462.0,90456.0,0.13206255]
[1731807167560,0.221088,90462.0,90451.0,0.0008584]
[1731807167788,0.04508124,90477.0,90451.0,0.0008584]
[1731807167789,0.110554,90454.0,90451.0,0.0008584]
[1731807168009,0.110554,90453.0,90451.0,0.0008584]
[1731807168221,0.02033368,90458.0,90451.0,0.0008584]
[1731807168475,0.110553,90455.0,90451.0,0.0008584]
[1731807168683,0.221092,90460.0,90451.0,0.0008584]
[1731807168916,0.0304998,90459.0,90451.0,0.0008584]
[1731807169140,0.221092,90460.0,90451.0,0.0008584]
[1731807169141,0.110554,90454.0,90451.0,0.0008584]
[1731807169368,0.221099,90457.0,90451.0,0.0008584]
[1731807169369,0.110555,90452.0,90451.0,0.0008584]
[1731807169586,0.14105555,90452.0,90451.0,0.0008584]
[1731807169810,0.12072185,90452.0,90451.0,0.0008584]
[1731807170061,0.13088868,90452.0,90451.0,0.0008584]
[1731807170305,0.02033368,90452.0,90451.0,0.0008584]
[1731807170544,0.221101,90456.0,90451.0,0.0008584]
[1731807170974,0.01627136,90465.0,90451.0,0.0008584]
[1731807171191,0.005,90484.0,90451.0,0.0008584]
[1731807171192,0.110555,90452.0,90451.0,0.0008584]
[1731807172115,0.13089209,90452.0,90451.0,0.0008584]
[1731807174188,0.02033709,90452.0,90451.0,0.0008584]
[1731807174431,0.13089209,90452.0,90451.0,0.0008584]
[1731807176629,0.14089209,90452.0,90451.0,0.0008584]
[1731807176884,0.110561,90447.0,90446.0,0.0008577]
[1731807177112,0.13589809,90447.0,90446.0,0.0008577]
[1731807177549,0.14089809,90447.0,90446.0,0.0008577]
[1731807177782,0.17343455,90447.0,90446.0,0.0008577]
[1731807178460,0.442252,90446.0,90436.0,0.13967868]
[1731807178690,0.110574,90437.0,90436.0,0.13967868]
[1731807178919,0.13091109,90437.0,90436.0,0.13967868]
[1731807179146,0.13091109,90437.0,90427.0,0.16582098]
[1731807179386,0.02033709,90436.0,90427.0,0.27488353]
[1731807179621,0.221142,90440.0,90427.0,0.27488353]
[1731807179622,0.02039616,90435.0,90432.0,0.110579]
[1731807179848,0.110574,90438.0,90432.0,0.110579]
[1731807180067,0.110575,90436.0,90429.0,0.221167]
[1731807180312,0.226128,90445.0,90427.0,0.27488353]
[1731807180313,0.02039595,90435.0,90427.0,0.27488353]
[1731807180564,0.102,90471.0,90440.0,0.023]
[1731807180565,0.02041915,90446.0,90440.0,0.023]
[1731807180809,0.005,90455.0,90442.0,0.221136]
[1731807180810,0.02041915,90451.0,90442.0,0.221136]
[1731807181042,0.02041915,90450.0,90448.0,0.023]
[1731807181267,0.02041915,90449.0,90448.0,0.023]
[1731807181500,0.02041915,90449.0,90442.0,0.221136]
[1731807181501,0.02041915,90449.0,90446.0,0.221125]
[1731807181732,0.0814,90456.0,90446.0,0.221125]
[1731807181733,0.02041915,90455.0,90451.0,0.023]
[1731807181985,0.005,90456.0,90451.0,0.023]
[1731807182205,0.02050179,90455.0,90451.0,0.023]
[1731807182417,0.02050179,90454.0,90449.0,0.110559]
[1731807182656,0.0535,90459.0,90450.0,0.00221101]
[1731807182881,0.083,90465.0,90461.0,0.023]
[1731807183110,0.0017168,90467.0,90461.0,0.023]
[1731807183396,0.0017168,90467.0,90463.0,0.110541]
[1731807183630,0.0017168,90467.0,90464.0,0.023]
[1731807183861,0.0017168,90467.0,90462.0,0.133543]
[1731807184078,0.0017168,90467.0,90458.0,0.023]
[1731807184333,0.0017168,90467.0,90457.0,0.16582098]
[1731807184555,0.0017168,90467.0,90461.0,0.023]
[1731807184794,0.0017168,90467.0,90457.0,0.38691998]
[1731807185032,0.0017168,90467.0,90458.0,0.16582098]
[1731807185490,0.110544,90462.0,90458.0,0.16582098]
[1731807185751,0.110546,90460.0,90458.0,0.16582098]
[1731807186001,0.0017168,90467.0,90452.0,0.10906255]
[1731807186217,0.02052255,90466.0,90452.0,0.10906255]
[1731807186457,0.0017168,90467.0,90464.0,0.133541]
[1731807186458,0.02052255,90465.0,90464.0,0.133541]
[1731807186676,0.02052255,90465.0,90464.0,0.023]
[1731807186900,0.02052255,90465.0,90462.0,0.110543]
[1731807186901,0.02052255,90465.0,90463.0,0.023]
[1731807187121,0.02052255,90464.0,90460.0,0.133545]
[1731807187360,0.02052255,90464.0,90452.0,0.10906255]
[1731807187361,0.02052255,90463.0,90453.0,0.023]
[1731807187588,0.0017168,90467.0,90453.0,0.023]
[1731807187589,0.13106555,90462.0,90453.0,0.13206255]
[1731807187841,0.02052255,90461.0,90457.0,0.023]
[1731807188057,0.110543,90462.0,90457.0,0.023]
[1731807188058,0.02052255,90460.0,90457.0,0.023]
[1731807188281,0.02052255,90459.0,90458.0,0.133548]
[1731807188951,0.0017168,90467.0,90459.0,0.133546]
[1731807189162,0.110542,90463.0,90458.0,0.023]
[1731807189403,0.0017168,90467.0,90459.0,0.023]
[1731807189404,0.02051971,90462.0,90459.0,0.023]
[1731807189610,0.0017168,90467.0,90462.0,0.133542]
[1731807189856,0.1122538,90467.0,90462.0,0.023]
[1731807190098,0.221077,90466.0,90458.0,0.023]
[1731807190324,0.0017168,90467.0,90458.0,0.023]
[1731807190559,0.11054,90465.0,90458.0,0.023]
[1731807190797,0.110544,90461.0,90460.0,0.023]
[1731807191052,0.110546,90460.0,90458.0,0.023]
[1731807191271,0.02051706,90459.0,90455.0,0.023]
[1731807191498,0.02051706,90458.0,90454.0,0.110552]
[1731807191739,0.005,90464.0,90455.0,0.023]
[1731807191740,0.110547,90460.0,90455.0,0.023]
[1731807191967,0.13106462,90459.0,90455.0,0.023]
[1731807192280,0.110549,90458.0,90453.0,0.023]
[1731807192529,0.110551,90456.0,90448.0,0.023]
[1731807192740,0.110555,90453.0,90448.0,0.023]
[1731807193211,0.331652,90456.0,90448.0,0.133559]
[1731807193421,0.221092,90460.0,90449.0,0.110558]
[1731807193690,0.221092,90460.0,90448.0,0.023]
[1731807193691,0.221094,90459.0,90448.0,0.110559]
[1731807193896,0.02052042,90458.0,90449.0,0.16582098]
[1731807194108,0.221089,90461.0,90452.0,0.023]
[1731807194109,0.02052049,90457.0,90452.0,0.023]
[1731807194321,0.110552,90455.0,90452.0,0.023]
[1731807194535,0.110556,90452.0,90450.0,0.023]
[1731807194761,0.110553,90454.0,90450.0,0.023]
[1731807194987,0.02052144,90453.0,90450.0,0.023]
[1731807195214,0.02052192,90452.0,90450.0,0.023]
[1731807195451,0.110552,90456.0,90450.0,0.133557]
[1731807195669,0.13107516,90455.0,90450.0,0.023]
[1731807195921,0.02052316,90454.0,90450.0,0.023]
[1731807196126,0.02052316,90453.0,90450.0,0.023]
[1731807196346,0.0017174,90458.0,90450.0,0.023]
[1731807196347,0.02052316,90452.0,90451.0,0.110557]
[1731807196581,0.0017174,90458.0,90454.0,0.110553]
[1731807196791,0.02052293,90457.0,90452.0,0.110555]
[1731807197018,0.0017174,90458.0,90453.0,0.023]
[1731807197019,0.02052293,90456.0,90453.0,0.023]
[1731807197261,0.0017174,90458.0,90448.0,0.18882098]
[1731807197262,0.110554,90453.0,90448.0,0.18882098]
[1731807197495,0.110552,90456.0,90449.0,0.110558]
[1731807197730,0.110552,90456.0,90448.0,0.18882098]
[1731807197731,0.02052679,90455.0,90450.0,0.023]
[1731807197969,0.110556,90452.0,90449.0,0.023]
[1731807198174,0.05337146,90454.0,90449.0,0.023]
[1731807198175,0.02052679,90451.0,90449.0,0.023]
[1731807198412,0.02052679,90450.0,90449.0,0.023]
[1731807198626,0.02052679,90450.0,90444.0,0.023]
[1731807198627,0.02052761,90450.0,90444.0,0.023]
[1731807198849,0.110552,90455.0,90449.0,0.110559]
[1731807199055,0.0795,90456.0,90445.0,0.221127]
[1731807199277,0.0795,90456.0,90448.0,0.023]
[1731807199278,0.110555,90453.0,90448.0,0.023]
[1731807199485,0.0795,90456.0,90445.0,0.221127]
[1731807199486,0.0205276,90452.0,90446.0,0.023]
[1731807199770,0.0205276,90451.0,90450.0,0.023]
[1731807199985,0.0205276,90451.0,90450.0,0.13576906]
[1731807200193,0.0205276,90451.0,90450.0,0.133558]
[1731807200833,0.0017174,90458.0,90457.0,0.110549]
[1731807201047,0.02225276,90458.0,90457.0,0.13575986]
[1731807201333,0.02225276,90458.0,90457.0,0.37056483]
[1731807201334,0.0017174,90458.0,90457.0,0.37056483]
[1731807208514,0.0067342,90472.0,90471.0,0.110532]
[1731807208751,0.0067342,90472.0,90471.0,0.133532]
[1731807208988,0.0067342,90472.0,90471.0,0.023]
[1731807209433,0.1172652,90472.0,90471.0,0.023]
[1731807209656,0.1172652,90472.0,90454.0,0.221105]
[1731807209657,0.221068,90470.0,90461.0,0.023]
[1731807209883,0.0067342,90472.0,90447.0,0.16582098]
[1731807209884,0.221077,90466.0,90457.0,0.27636998]
[1731807210089,0.005,90467.0,90457.0,0.16582098]
[1731807210333,0.110544,90461.0,90457.0,0.16582098]
[1731807210582,0.2211,90457.0,90448.0,0.10906255]
[1731807210810,0.2211,90457.0,90450.0,0.110557]
[1731807210811,0.11055,90457.0,90450.0,0.110557]
[1731807211035,0.110551,90456.0,90450.0,0.110557]
[1731807211306,0.005,90463.0,90450.0,0.110557]
[1731807211307,0.110552,90455.0,90450.0,0.110557]
[1731807211739,0.110551,90456.0,90450.0,0.110557]
[1731807212451,0.110557,90451.0,90445.0,0.110564]
[1731807212657,0.110558,90450.0,90444.0,0.133564]
[1731807212900,0.110559,90449.0,90444.0,0.023]
[1731807213114,0.0803,90453.0,90444.0,0.023]
[1731807213368,0.005,90451.0,90436.0,0.0008587]
[1731807213585,0.110569,90441.0,90436.0,0.0008587]
[1731807214042,0.221135,90443.0,90436.0,0.0008587]
[1731807214268,0.110569,90441.0,90436.0,0.0008587]
[1731807215163,0.221126,90446.0,90436.0,0.0008587]
[1731807215384,0.110569,90441.0,90436.0,0.0008587]
[1731807215598,0.110569,90441.0,90437.0,0.023]
[1731807217154,0.226128,90445.0,90437.0,0.023]
[1731807217155,0.110567,90443.0,90437.0,0.023]
[1731807217372,0.005,90445.0,90444.0,0.023]
[1731807217636,0.110567,90443.0,90438.0,0.023]
[1731807218506,0.110568,90442.0,90437.0,0.023]
[1731807219163,0.005,90445.0,90437.0,0.023]
[1731807219590,0.115564,90445.0,90439.0,0.133571]
[1731807219791,0.115564,90445.0,90439.0,0.023]
[1731807220441,0.115564,90445.0,90439.0,0.110571]
[1731807220657,0.110566,90444.0,90438.0,0.133572]
[1731807221122,0.005,90456.0,90442.0,0.023]
[1731807221343,0.0456,90458.0,90447.0,0.221123]
[1731807221559,0.0456,90458.0,90456.0,0.023]
[1731807221772,0.0456,90458.0,90452.0,0.221109]
[1731807221989,0.0456,90458.0,90457.0,0.133549]
[1731807222239,0.005,90467.0,90466.0,0.133538]
[1731807222454,0.005,90466.0,90465.0,0.023]
[1731807222752,0.005,90468.0,90463.0,0.023]
[1731807222985,0.115536,90468.0,90463.0,0.023]
[1731807223231,0.005,90465.0,90463.0,0.023]
[1731807223438,0.005,90468.0,90463.0,0.023]
[1731807223654,0.0456,90470.0,90464.0,0.16582098]
[1731807223867,0.0456,90470.0,90469.0,0.133535]
[1731807224340,0.0803,90480.0,90469.0,0.023]
[1731807224555,0.0803,90480.0,90465.0,0.12795328]
[1731807224556,0.0803,90480.0,90476.0,0.110525]
[1731807224780,0.0803,90480.0,90472.0,0.221062]
[1731807225024,0.0803,90480.0,90479.0,0.110522]
[1731807225244,0.0803,90480.0,90478.0,0.023]
[1731807225671,0.0803,90480.0,90477.0,0.110524]
[1731807225892,0.0803,90480.0,90478.0,0.023]
[1731807226112,0.0456,90481.0,90478.0,0.023]
[1731807226322,0.0456,90481.0,90474.0,0.023]
[1731807226582,0.0456,90481.0,90478.0,0.023]
[1731807226818,0.0456,90481.0,90479.0,0.023]
[1731807227303,0.0456,90481.0,90477.0,0.023]
[1731807227512,0.0456,90481.0,90478.0,0.023]
[1731807227751,0.0456,90481.0,90475.0,0.023]
[1731807227752,0.0456,90481.0,90479.0,0.110522]
[1731807227962,0.0456,90481.0,90475.0,0.023]
[1731807227963,0.0456,90481.0,90480.0,0.110521]
[1731807228460,0.0456,90481.0,90476.0,0.110526]
[1731807228675,0.0456,90481.0,90478.0,0.110523]
[1731807228906,0.0456,90481.0,90479.0,0.133522]
[1731807229145,0.0456,90481.0,90479.0,0.023]
[1731807229415,0.0456,90481.0,90467.0,0.38689298]
[1731807229416,0.0506,90481.0,90475.0,0.023]
[1731807229613,0.221043,90480.0,90468.0,0.023]
[1731807229839,0.221043,90480.0,90468.0,0.133535]
[1731807229840,0.110529,90474.0,90468.0,0.133535]
[1731807230066,0.0506,90481.0,90468.0,0.023]
[1731807230297,0.0506,90481.0,90471.0,0.023]
[1731807230585,0.0506,90481.0,90470.0,0.023]
[1731807230821,0.0506,90481.0,90479.0,0.023]
[1731807231058,0.0523122,90481.0,90479.0,0.023]
[1731807231289,0.0523122,90481.0,90480.0,0.110521]
[1731807231505,0.0523122,90481.0,90480.0,0.023]
[1731807231740,0.0523122,90481.0,90471.0,0.221065]
[1731807231967,0.0523122,90481.0,90468.0,0.22107]
[1731807231968,0.110528,90475.0,90468.0,0.110536]
[1731807232194,0.0523122,90481.0,90467.0,0.16582098]
[1731807232195,0.0473122,90481.0,90467.0,0.16582098]
[1731807232439,0.0204772,90480.0,90467.0,0.16582098]
[1731807232682,0.0523122,90481.0,90476.0,0.110525]
[1731807233126,0.0523122,90481.0,90473.0,0.221059]
[1731807233127,0.1628322,90481.0,90474.0,0.110528]
[1731807233342,0.1628322,90481.0,90475.0,0.110527]
[1731807233551,0.20677543,90481.0,90475.0,0.110527]
[1731807233777,0.20677543,90481.0,90476.0,0.023]
[1731807234012,0.0523122,90481.0,90478.0,0.023]
[1731807234466,0.1628322,90481.0,90476.0,0.110526]
[1731807234699,0.1628322,90481.0,90474.0,0.023]
[1731807234700,0.110527,90475.0,90474.0,0.023]
[1731807234953,0.22163449,90475.0,90474.0,0.023]
[1731807235179,0.115569,90441.0,90440.0,0.16667938]
[1731807235403,0.115569,90441.0,90440.0,0.0008584]
[1731807235404,0.5325856,90441.0,90440.0,0.0008584]
[1731807235629,0.5325856,90441.0,90415.0,0.0135456]
[1731807235630,0.015,90437.0,90415.0,0.0135456]
[1731807235850,0.155799,90416.0,90415.0,0.0135456]
[1731807236072,0.10863368,90416.0,90415.0,0.0135456]
[1731807236336,0.08090749,90416.0,90415.0,0.0135456]
[1731807236587,0.005,90405.0,90389.0,0.110632]
[1731807237009,0.22121,90412.0,90387.0,0.1544972]
[1731807237010,0.03570749,90404.0,90387.0,0.1544972]
[1731807237239,0.02227054,90394.0,90387.0,0.110635]
[1731807237456,0.01023543,90403.0,90377.0,0.10906255]
[1731807237457,0.02047206,90393.0,90382.0,0.221282]
[1731807237684,0.03272619,90402.0,90401.0,0.110618]
[1731807237935,0.16582098,90399.0,90398.0,0.110621]
[1731807238216,0.005,90404.0,90401.0,0.110618]
[1731807238434,0.005,90377.0,90376.0,0.16667698]
[1731807238685,0.05307841,90377.0,90376.0,0.16667698]
[1731807238905,0.06227539,90377.0,90376.0,0.16167698]
[1731807239122,0.05727539,90377.0,90376.0,0.16167698]
[1731807239344,0.05727539,90377.0,90376.0,0.27232498]
[1731807239593,0.05726173,90377.0,90376.0,0.110648]
[1731807239836,0.01441477,90377.0,90376.0,0.110648]
[1731807240512,0.04277091,90392.0,90391.0,0.11063]
[1731807240736,0.04277091,90392.0,90391.0,0.13363]
[1731807241182,0.01018363,90392.0,90391.0,0.13363]
[1731807241410,0.01382379,90425.0,90424.0,0.11559]
[1731807241624,0.66377923,90441.0,90437.0,0.005]
[1731807241864,0.01018664,90440.0,90438.0,0.023]
[1731807242107,0.01018664,90439.0,90438.0,0.110572]
[1731807242327,0.01018664,90439.0,90438.0,0.133572]
[1731807242547,0.221068,90470.0,90442.0,0.110568]
[1731807242788,0.110547,90460.0,90442.0,0.110568]
[1731807243030,0.221085,90463.0,90442.0,0.110568]
[1731807243031,0.05538638,90443.0,90442.0,0.110568]
[1731807244476,0.05538638,90443.0,90434.0,0.0008561]
[1731807244745,0.0452,90443.0,90442.0,0.66377923]
[1731807244990,0.05538861,90443.0,90442.0,0.66377923]
[1731807245444,0.05538861,90443.0,90434.0,0.0008561]
[1731807245678,0.05538861,90443.0,90435.0,0.66377923]
[1731807245679,0.11925116,90442.0,90435.0,0.66377923]
[1731807245893,0.01018861,90441.0,90435.0,0.66377923]
[1731807246105,0.11925116,90440.0,90435.0,0.66377923]
[1731807246329,0.01018861,90439.0,90434.0,0.1114331]
[1731807246588,0.11925116,90438.0,90428.0,0.005]
[1731807246832,0.11925116,90438.0,90425.0,0.1658604]
[1731807246833,0.110578,90434.0,90425.0,0.1658604]
[1731807247063,0.11925116,90433.0,90425.0,0.1658604]
[1731807247332,0.01018861,90432.0,90427.0,0.110586]
[1731807247568,0.01018861,90432.0,90425.0,0.1658604]
[1731807247569,0.11925116,90431.0,90425.0,0.1658604]
[1731807247803,0.01018861,90430.0,90428.0,0.110584]
[1731807248016,0.01018861,90429.0,90428.0,0.110584]
[1731807248511,0.01018861,90429.0,90425.0,0.1658604]
[1731807248748,0.01018861,90428.0,90426.0,0.110587]
[1731807248955,0.01018861,90427.0,90426.0,0.110587]
[1731807249384,0.01018861,90427.0,90425.0,0.1658604]
[1731807249638,0.01018861,90426.0,90425.0,0.1658604]
[1731807250115,0.01018861,90426.0,90425.0,0.2764484]
[1731807250355,0.11925116,90426.0,90409.0,0.005]
[1731807250577,0.11925116,90425.0,90416.0,0.1658604]
[1731807250790,0.02036334,90424.0,90416.0,0.1658604]
[1731807251010,0.110598,90417.0,90416.0,0.1658604]
[1731807251249,0.14114995,90417.0,90416.0,0.1658604]
[1731807251461,0.110601,90415.0,90408.0,0.005]
[1731807251690,0.01382042,90429.0,90406.0,0.1658604]
[1731807251691,0.11061,90407.0,90406.0,0.1658604]
[1731807251937,0.17372972,90407.0,90406.0,0.1658604]
[1731807252156,0.17372972,90407.0,90397.0,0.115622]
[1731807252157,0.110614,90404.0,90397.0,0.005]
[1731807252371,0.110616,90403.0,90402.0,0.1658604]
[1731807252611,0.14115799,90403.0,90402.0,0.15324996]
[1731807252824,0.03054199,90403.0,90393.0,0.005]
[1731807253065,0.03054199,90403.0,90390.0,0.1708604]
[1731807253066,0.06309517,90402.0,90400.0,0.1658604]
[1731807253283,0.0452,90408.0,90385.0,0.01]
[1731807253284,0.221241,90399.0,90385.0,0.01]
[1731807253755,0.033626,90394.0,90393.0,0.1658604]
[1731807253760,0.033626,90394.0,90391.0,0.1658604]
[1731807253761,0.110627,90394.0,90391.0,0.1658604]
[1731807254015,0.221246,90397.0,90391.0,0.1658604]
[1731807254016,0.28275625,90393.0,90391.0,0.1658604]
[1731807254233,0.0630657,90392.0,90391.0,0.1658604]
[1731807254460,0.0630657,90392.0,90383.0,0.005]
[1731807254672,0.0630657,90391.0,90387.0,0.110635]
[1731807254893,0.0630657,90390.0,90383.0,0.005]
[1731807255155,0.0484,90388.0,90371.0,0.0008585]
[1731807255367,0.17210235,90387.0,90375.0,0.1658604]
[1731807255577,0.110648,90376.0,90375.0,0.1658604]
[1731807255787,0.0630398,90376.0,90375.0,0.1658604]
[1731807256043,0.0630398,90376.0,90375.0,0.2765104]
[1731807256272,0.03050005,90376.0,90372.0,0.03]
[1731807256478,0.110651,90374.0,90372.0,0.03]
[1731807256691,0.0630398,90373.0,90372.0,0.03]
[1731807256924,0.14115205,90373.0,90372.0,0.03]
[1731807257446,0.28271274,90373.0,90372.0,0.03]
[1731807258349,0.28637499,90373.0,90372.0,0.03]
[1731807258599,0.29653077,90373.0,90372.0,0.03]
[1731807260483,0.34453077,90373.0,90372.0,0.03]
[1731807260712,0.34453077,90373.0,90372.0,0.00510672]
[1731807261903,0.23387877,90373.0,90350.0,0.221358]
[1731807262123,0.14317254,90365.0,90357.0,0.110671]
[1731807262342,0.18587877,90372.0,90343.0,0.000856]
[1731807262343,0.07681622,90364.0,90343.0,0.000856]
[1731807262620,0.110677,90353.0,90345.0,0.005]
[1731807262825,0.221319,90368.0,90347.0,0.005]
[1731807262826,0.07681622,90352.0,90347.0,0.005]
[1731807263047,0.07681622,90351.0,90347.0,0.005]
[1731807263251,0.110677,90353.0,90344.0,0.1658604]
[1731807263252,0.06299126,90350.0,90344.0,0.1658604]
[1731807263501,0.05283548,90349.0,90343.0,0.000856]
[1731807263784,0.06299126,90348.0,90345.0,0.110685]
[1731807264011,0.05283548,90347.0,90345.0,0.110685]
[1731807264227,0.06299126,90346.0,90343.0,0.000856]
[1731807264487,0.10906255,90353.0,90343.0,0.000856]
[1731807264488,0.21973955,90353.0,90345.0,0.110686]
[1731807264734,0.07691949,90352.0,90347.0,0.110683]
[1731807264950,0.01017865,90351.0,90347.0,0.110683]
[1731807265233,0.0325717,90351.0,90350.0,0.11068]
[1731807265454,0.1708604,90382.0,90350.0,0.11068]
[1731807265455,0.0325717,90365.0,90357.0,0.028]
[1731807265671,0.0325717,90368.0,90367.0,0.110659]
[1731807265890,0.0769586,90368.0,90357.0,0.005]
[1731807266112,0.1078717,90378.0,90363.0,0.221327]
[1731807266333,0.05295028,90372.0,90368.0,0.110658]
[1731807266579,0.06313268,90371.0,90361.0,0.005]
[1731807266798,0.06313268,90370.0,90366.0,0.11066]
[1731807267015,0.158652,90373.0,90368.0,0.110658]
[1731807267016,0.06313268,90369.0,90368.0,0.110658]
[1731807267260,0.03054789,90369.0,90368.0,0.110658]
[1731807267943,0.07479789,90369.0,90368.0,0.115658]
[1731807268155,0.03054789,90369.0,90368.0,0.115658]
[1731807268389,0.0101824,90369.0,90368.0,0.115658]
[1731807268633,0.02036271,90380.0,90371.0,0.442618]
[1731807269027,0.044247,90382.0,90381.0,0.110642]
[1731807269357,0.15330955,90382.0,90381.0,0.110642]
[1731807269591,0.044247,90382.0,90381.0,0.110642]
[1731807271239,0.0776,90407.0,90406.0,0.110612]
[1731807271506,0.27492295,90407.0,90406.0,0.110612]
[1731807271733,0.10906255,90407.0,90406.0,0.110612]
[1731807271952,0.044236,90407.0,90406.0,0.110612]
[1731807273349,0.0776,90423.0,90403.0,0.005]
[1731807273350,0.110592,90422.0,90411.0,0.110605]
[1731807273577,0.10906255,90421.0,90411.0,0.110605]
[1731807273789,0.10906255,90421.0,90412.0,0.110604]
[1731807274007,0.110603,90414.0,90406.0,0.1658604]
[1731807274272,0.04423,90422.0,90381.0,0.002]
[1731807274273,0.10906255,90413.0,90381.0,0.002]
[1731807274470,0.110609,90408.0,90407.0,0.1658604]
[1731807274705,0.110612,90406.0,90395.0,0.110625]
[1731807274941,0.21967655,90405.0,90395.0,0.110625]
[1731807275160,0.10906255,90405.0,90396.0,0.2764834]
[1731807275431,0.10906255,90405.0,90397.0,0.110622]
[1731807275631,0.04423,90422.0,90407.0,0.110609]
[1731807275840,0.10906255,90411.0,90396.0,0.1708604]
[1731807276052,0.10906255,90411.0,90397.0,0.1658604]
[1731807276520,0.110608,90409.0,90398.0,0.110621]
[1731807276989,0.10906255,90408.0,90397.0,0.1658604]
[1731807276991,0.110614,90404.0,90397.0,0.1658604]
[1731807277215,0.10906255,90403.0,90397.0,0.1658604]
[1731807277431,0.21967855,90403.0,90397.0,0.1658604]
[1731807277648,0.10906255,90403.0,90397.0,0.1658604]
[1731807277863,0.110618,90401.0,90394.0,0.110625]
[1731807278089,0.10906255,90403.0,90392.0,0.221258]
[1731807278341,0.10906255,90403.0,90393.0,0.1658604]
[1731807278577,0.110617,90402.0,90394.0,0.110625]
[1731807278813,0.21967955,90402.0,90395.0,0.110625]
[1731807279034,0.11062,90400.0,90389.0,0.005]
[1731807279272,0.10906255,90402.0,90393.0,0.1658604]
[1731807279501,0.09731364,90431.0,90393.0,0.1708604]
[1731807279728,0.1,90414.0,90409.0,0.110608]
[1731807279946,0.1,90412.0,90396.0,0.005]
[1731807280188,0.1,90414.0,90409.0,0.110607]
[1731807280189,0.10906255,90411.0,90409.0,0.110607]
[1731807280427,0.10906255,90411.0,90406.0,0.221222]
[1731807280730,0.14423,90422.0,90407.0,0.005]
[1731807281017,0.01022523,90410.0,90407.0,0.005]
[1731807281262,0.10906255,90421.0,90419.0,0.110595]
[1731807281496,0.10906255,90421.0,90417.0,0.110598]
[1731807281746,0.10906255,90421.0,90407.0,0.005]
[1731807281747,0.110599,90417.0,90407.0,0.005]
[1731807282015,0.110599,90417.0,90410.0,0.110607]
[1731807282267,0.10906255,90416.0,90402.0,0.005]
[1731807282514,0.110606,90411.0,90402.0,0.005]
[1731807282752,0.11061,90408.0,90398.0,0.331864]
[1731807282989,0.10906255,90407.0,90394.0,0.002]
[1731807283211,0.10906255,90407.0,90399.0,0.11062]
[1731807283212,0.110612,90406.0,90399.0,0.11062]
[1731807283423,0.110612,90406.0,90394.0,0.002]
[1731807283424,0.10906255,90405.0,90398.0,0.110621]
[1731807283631,0.110612,90406.0,90398.0,0.221243]
[1731807283844,0.11061,90408.0,90401.0,0.110617]
[1731807284060,0.11061,90408.0,90394.0,0.002]
[1731807284061,0.10906255,90408.0,90403.0,0.110615]
[1731807284299,0.10906255,90408.0,90394.0,0.002]
[1731807284579,0.221206,90414.0,90407.0,0.1658604]
[1731807284816,0.03605591,90421.0,90416.0,0.110599]
[1731807284817,0.1,90421.0,90416.0,0.110599]
[1731807285047,0.14423,90422.0,90408.0,0.221219]
[1731807285287,0.14423,90422.0,90409.0,0.1658604]
[1731807285508,0.14423,90422.0,90412.0,0.221209]
[1731807285737,0.14423,90422.0,90418.0,0.110596]
[1731807285945,0.14423,90422.0,90409.0,0.1658604]
[1731807286372,0.14423,90422.0,90419.0,0.110595]
[1731807286584,0.14423,90422.0,90418.0,0.110596]
[1731807286996,0.04423,90422.0,90417.0,0.110598]
[1731807287223,0.04423,90422.0,90417.0,0.110597]
[1731807287448,0.04423,90422.0,90421.0,0.2764534]
[1731807287666,0.364644,90439.0,90419.0,0.110595]
[1731807287667,0.221164,90431.0,90419.0,0.110595]
[1731807287876,0.221164,90431.0,90414.0,0.226202]
[1731807287877,0.044226,90428.0,90415.0,0.110601]
[1731807288103,0.044226,90428.0,90418.0,0.221194]
[1731807288391,0.044226,90428.0,90417.0,0.1658604]
[1731807288392,0.044226,90428.0,90419.0,0.221192]
[1731807288644,0.044226,90428.0,90423.0,0.11059]
[1731807288850,0.044226,90428.0,90424.0,0.11059]
[1731807289501,0.044226,90428.0,90417.0,0.1658604]
[1731807289963,0.044226,90428.0,90419.0,0.110595]
[1731807289964,0.110589,90425.0,90419.0,0.110595]
[1731807290183,0.11059,90424.0,90418.0,0.110597]
[1731807290398,0.11059,90424.0,90419.0,0.110595]
[1731807290614,0.11059,90424.0,90406.0,0.115612]
[1731807290615,0.110592,90422.0,90406.0,0.115612]
[1731807290827,0.110603,90413.0,90408.0,0.150609]
[1731807291059,0.02043508,90420.0,90419.0,0.01]
[1731807291322,0.1658604,90431.0,90430.0,0.120582]
[1731807291796,0.1658604,90431.0,90430.0,0.115582]
[1731807292038,0.1658604,90431.0,90430.0,0.120582]
[1731807292295,0.1658604,90441.0,90440.0,0.11057]
[1731807292511,0.1658604,90441.0,90440.0,0.11557]
[1731807292980,0.1658604,90452.0,90440.0,0.005]
[1731807293197,0.1658604,90452.0,90451.0,0.110557]
[1731807293674,0.1658604,90472.0,90449.0,0.221117]
[1731807293675,0.044213,90456.0,90455.0,0.110552]
[1731807293898,0.1658604,90472.0,90461.0,0.110544]